Cogmind - Beta 10.2 @@@ ROGUE MODE // 2021.07.25 @ 19:15:50 // Winter2019/RPGLIKE Player: powbox Result: Self-destructed Performance ------------- Evolutions (1) 500 Regions Visited (3) 600 Robots Destroyed (7) 35 Value Destroyed (148) 148 Prototype IDs (0) 0 Alien Tech Used (0) 0 Bonus (0) 0 TOTAL SCORE: 1283 Bonus ------- None Cogmind --------- Core Integrity 570/1000 Matter 300/300 Energy 250/250 System Corruption 0% Temperature Cool (0) Movement Treading (160) Location -9/Storage Parts ------- > --- POWER (1) -------- Ion Engine > --- PROPULSION (2) --- Improved Treads > --- UTILITY (2) ------ Improved Terrain Scanner > --- WEAPON (2) ------- Medium Laser > --- INVENTORY (3) ---- (None) Peak State ------------ > --- POWER ------------ Ion Engine > --- PROPULSION ------- Improved Treads > --- UTILITY ---------- Improved Terrain Scanner > --- WEAPON ----------- Medium Laser > --- INVENTORY -------- (None) [Rating: 6] Favorites ----------- Power Ion Engine Engine Ion Engine Propulsion Improved Treads Treads Improved Treads Utility Improved Terrain Scanner Device Improved Terrain Scanner Weapon Medium Laser Energy Gun Medium Laser Build | -11 -10 -9 -9 ------- Run | Scr Mat Mat Sto Slots Evolved 3 | . . 3 . Power . | . . . . Propulsion 1 | . . 1 . Utility 1 | . . 1 . Weapon 1 | . . 1 . Parts Attached 5 | 3 2 . . Power 1 | 1 . . . Engine 1 | 1 . . . Core . | . . . . Reactor . | . . . . Propulsion 2 | 1 1 . . Treads 2 | 1 1 . . Leg . | . . . . Wheel . | . . . . Hover . | . . . . Flight . | . . . . Utility 1 | . 1 . . Device 1 | . 1 . . Storage . | . . . . Processor . | . . . . Hackware . | . . . . Protection . | . . . . Artifact . | . . . . Weapon 1 | 1 . . . Energy Gun 1 | 1 . . . Energy Cannon . | . . . . Ballistic Gun . | . . . . Ballistic Cannon . | . . . . Launcher . | . . . . Special Weapon . | . . . . Impact Weapon . | . . . . Slashing Weapon . | . . . . Piercing Weapon . | . . . . Special Melee Weapon . | . . . . Unidentified Prototypes . | . . . . Parts Lost . | . . . . Power . | . . . . Propulsion . | . . . . Utility . | . . . . Weapon . | . . . . Highest Loss Streak . | . . . . Average Slot Usage (%) 87 | . 99 67 57 Engine 21 | . 25 16 14 Treads 21 | . 25 16 14 Device 21 | . 24 16 14 Energy Gun 21 | . 25 16 14 Naked Turns . | . . . . Heaviest Build 8 | 7 8 8 8 Greatest Support 28 | 20 23 28 28 Greatest Overweight (x) 1 | 1 . . . Average Overweight (x) . | . . . . Largest Inventory Capacity 3 | . . 3 3 Average Capacity . | . . 2 3 Most Carried . | . . . . Average Carried . | . . . . Final Capacity 3 | . . 3 3 Final Carried . | . . . . Class Distribution -------------------- 100% | Mutant Dominant Class ---------------- Mutant | -10/Materials Mutant | -9/Materials Mutant | -9/Storage Resources | -11 -10 -9 -9 ----------- Run | Scr Mat Mat Sto Matter Collected 250 | 230 20 . . Remotely . | . . . . Salvage Created 205 | . 205 . . Parts 14 | . 14 . . Haulers Intercepted . | . . . . Recyclers Shooed . | . . . . Parts Field Recycled . | . . . . Retrieved Matter . | . . . . Parts Self-Destructed . | . . . . Prevented . | . . . . Kills | -11 -10 -9 -9 ------- Run | Scr Mat Mat Sto Combat Hostiles Destroyed 6 | . 6 . . Guns 6 | . 6 . . Classes Destroyed 3 | . 3 . . Operator 1 | . 1 . . Swarmer 3 | . 3 . . Grunt 3 | . 3 . . Best Kill Streak 2 | . 2 . . Combat Bots Only 2 | . 2 . . Max Kills in Single Turn 1 | . 1 . . Gunslinging . | . . . . Exploded . | . . . . Melee . | . . . . Uniques/NPCs Destroyed . | . . . . Combat | -11 -10 -9 -9 -------- Run | Scr Mat Mat Sto Damage Taken 632 | . 544 23 65 Core 505 | . 433 17 55 Absorbed by Shields . | . . . . Redirected to Core 378 | . 327 17 34 Core Remaining (%) 70 | 100 40 . . Volleys Fired 41 | . 41 . . Largest 1 | . 1 . . Hottest 50 | . 50 . . Shots Fired 41 | . 41 . . Gun 41 | . 41 . . Cannon . | . . . . Launcher . | . . . . Special . | . . . . Kinetic . | . . . . Thermal 41 | . 41 . . Explosive . | . . . . Electromagnetic . | . . . . Robot Hit Streak 5 | . 5 . . Robot Miss Streak 2 | . 2 . . Penetration Max . | . . . . Secondary Targets . | . . . . Shots Hit Robots 29 | . 29 . . Core Hits 11 | . 11 . . Critical Hits . | . . . . Critical Kills . | . . . . Critical Parts Destroyed . | . . . . Melee Attacks . | . . . . Impact . | . . . . Slashing . | . . . . Piercing . | . . . . Sneak Attacks . | . . . . Combat Hostiles . | . . . . Follow-up Attacks . | . . . . Damage Inflicted 376 | . 376 . . Guns 376 | . 376 . . Cannons . | . . . . Explosions . | . . . . Melee . | . . . . Ramming . | . . . . Kinetic . | . . . . Thermal 376 | . 376 . . Explosive . | . . . . Electromagnetic . | . . . . Impact . | . . . . Slashing . | . . . . Piercing . | . . . . Highest Corruption . | . . . . Average Corruption . | . . . . Corruption Purged . | . . . . Overload Shots . | . . . . Overflow Damage . | . . . . Projectiles . | . . . . Explosions . | . . . . Melee . | . . . . Knockbacks . | . . . . Impact . | . . . . Kinetic . | . . . . Secondary . | . . . . Self-Inflicted Damage . | . . . . Shots . | . . . . Rammed . | . . . . Targets Rammed . | . . . . Kicked . | . . . . Crushed . | . . . . Highest Temperature 116 | . 116 . . Average Temperature 37 | . 37 . . Received Heat Transfer 252 | . 204 12 36 Siege Activations . | . . . . Robots Corrupted . | . . . . Combat Hostiles . | . . . . Parts Fried . | . . . . Impact Corruptions . | . . . . Robots Melted . | . . . . Combat Hostiles . | . . . . Parts Melted 2 | . 2 . . Heat Transferred 1110 | . 1110 . . Parts Sabotaged . | . . . . Parts Stolen . | . . . . Parts Stripped . | . . . . Power Chain Reactions . | . . . . Missiles Intercepted . | . . . . Alert | -11 -10 -9 -9 ------- Run | Scr Mat Mat Sto Peak Influence 150 | . 150 37 30 Initial 22 | . . 22 15 Average 29 | . 35 33 15 Maximum Alert Level . | . . . . Low Security (%) 100 | 100 100 100 100 Level 1 . | . . . . Level 2 . | . . . . Level 3 . | . . . . Level 4 . | . . . . Level 5 . | . . . . High Security . | . . . . Max Security . | . . . . Squads Dispatched 1 | . 1 . . Investigation . | . . . . Extermination . | . . . . Reinforcement 1 | . 1 . . Assault . | . . . . Garrison . | . . . . Intercept . | . . . . Construction Impeded . | . . . . Haulers Reinforced . | . . . . Stealth | -11 -10 -9 -9 --------- Run | Scr Mat Mat Sto Distress Signals 1 | . 1 . . Communications Jammed . | . . . . Distress Signals . | . . . . Times Spotted 23 | . 12 5 6 Peak Tracking Total 8 | . 4 4 8 Tactical Retreats 2 | . 2 . . Traps | -11 -10 -9 -9 ------- Run | Scr Mat Mat Sto Traps Triggered . | . . . . Indirectly . | . . . . Trap Hack Attempts . | . . . . Triggered . | . . . . Disarmed . | . . . . Reprogrammed . | . . . . Reused . | . . . . Traps Extracted . | . . . . Installed . | . . . . Triggered . | . . . . Machines | -11 -10 -9 -9 ---------- Run | Scr Mat Mat Sto Machines Disabled . | . . . . Max in Single Turn . | . . . . Machines Sabotaged . | . . . . Garrisons Compromised . | . . . . Overloaded Fab Kills . | . . . . Fab Network Shutdowns . | . . . . Hacking | -11 -10 -9 -9 --------- Run | Scr Mat Mat Sto Machines Accessed . | . . . . Terminals . | . . . . Fabricators . | . . . . Repair Stations . | . . . . Recycling Units . | . . . . Scanalyzers . | . . . . Garrison Access . | . . . . Total Hacks . | . . . . Successful . | . . . . Failed . | . . . . Catastrophic . | . . . . Database Lockouts . | . . . . Manual . | . . . . Terminals . | . . . . Fabricators . | . . . . Repair Stations . | . . . . Recycling Units . | . . . . Scanalyzers . | . . . . Garrison Access . | . . . . Terminal Hacks . | . . . . Fabricator Hacks . | . . . . Repair Station Hacks . | . . . . Recycling Unit Hacks . | . . . . Scanalyzer . | . . . . Garrison Access Hacks . | . . . . Unauthorized Hacks . | . . . . Terminals . | . . . . Fabricators . | . . . . Repair Stations . | . . . . Recycling Units . | . . . . Scanalyzers . | . . . . Garrison Access . | . . . . Data Cores Recovered . | . . . . Used . | . . . . Hacking Detections . | . . . . Full Trace Events . | . . . . Feedback Events . | . . . . Feedback Blocked . | . . . . Robot Schematics Acquired . | . . . . Robots Built . | . . . . Matter . | . . . . Time . | . . . . Total Robot Build Rating . | . . . . Part Schematics Acquired . | . . . . Parts Built . | . . . . Matter . | . . . . Time . | . . . . Total Part Build Rating . | . . . . Parts Repaired . | . . . . Time . | . . . . Parts Recycled . | . . . . Recycled Matter . | . . . . Retrieved Matter . | . . . . Retrieved Components . | . . . . Parts Scanalyzed . | . . . . Part Schematics Acquired . | . . . . Parts Damaged . | . . . . Bothacking | -11 -10 -9 -9 ------------ Run | Scr Mat Mat Sto Used RIF Installer . | . . . . Robots Hacked . | . . . . Non-combat . | . . . . Combat . | . . . . Robot Hacks Applied . | . . . . Relay Couplers Released . | . . . . Robots Rewired . | . . . . Allies Hacked . | . . . . Hacks Repelled . | . . . . Allies | -11 -10 -9 -9 -------- Run | Scr Mat Mat Sto Total Allies . | . . . . Largest Group . | . . . . Highest-Rated Group . | . . . . Highest-Rated Ally . | . . . . Total Orders . | . . . . Ally Attacks . | . . . . Total Damage . | . . . . Kills . | . . . . Allies Corrupted . | . . . . Allies Melted . | . . . . Intel | -11 -10 -9 -9 ------- Run | Scr Mat Mat Sto Robot Analysis Total . | . . . . Derelict Logs Recovered . | . . . . Drone Launches . | . . . . Drone Recoveries . | . . . . Exploration | -11 -10 -9 -9 ------------- Run | Scr Mat Mat Sto Turns Passed 828 | 54 522 120 132 Spaces Moved 429 | 35 236 76 82 Core 5 | 5 . . . Treads 424 | 30 236 76 82 Legs . | . . . . Wheels . | . . . . Hover . | . . . . Flight . | . . . . Fastest Speed 50 | 50 160 160 160 Average Speed 158 | 145 160 160 160 Slowest Speed 160 | 160 160 160 160 Overloaded Moves . | . . . . Propulsion Burnouts . | . . . . Robots Hopped . | . . . . Cave-ins Triggered . | . . . . Exploration Rate (%) 14 | 5 25 10 19 Regions Visited 3 Branch Regions 1 Pre-discovered Areas . | . . . . Known Exits Taken . | . . . . Unknown Exits Taken 3 | 1 1 1 . Scrap Searched . | . . . . Spaces Dug . | . . . . Terrain Destroyed . | . . . . Melee . | . . . . Projectile . | . . . . AOE . | . . . . Terrain Rammed . | . . . . Walls Destroyed . | . . . . Machines Disabled . | . . . . Actions | -11 -10 -9 -9 --------- Run | Scr Mat Mat Sto Total 534 | 37 340 75 82 Wait 57 | . 57 . . Move 426 | 34 235 75 82 Hop . | . . . . Pick Up . | . . . . Fast Attach 4 | 3 1 . . Attach . | . . . . Detach . | . . . . Swap 1 | . 1 . . Drop 1 | . 1 . . Fire 41 | . 41 . . Melee . | . . . . Ram . | . . . . Kick . | . . . . Crush . | . . . . Escape Stasis . | . . . . Rewire . | . . . . Trap . | . . . . Miscellaneous 4 | . 4 . . Route ------- -11/Scrapyard -10/Materials -9/Materials -9/Storage History --------- Turn | Location | Event 5 | -11/Scrapyard | Discovered new exit (range 14) 55 | -11/Scrapyard | Entered Materials 113 | -10/Materials | Discovered new exit (range 16) 301 | -10/Materials | Build established: Mutant 544 | -10/Materials | Core integrity fell below 50% 577 | -10/Materials | Entered another Materials area 578 | -9/Materials | Core integrity fell below 50% 579 | -9/Materials | Reached level 2 606 | -9/Materials | Upgraded with Propulsion slot (x1) 606 | -9/Materials | Upgraded with Utility slot (x1) 606 | -9/Materials | Upgraded with Weapon slot (x1) 619 | -9/Materials | Discovered new exit (range 12) 697 | -9/Materials | Entered Storage 699 | -9/Storage | Reached level 3 829 | -9/Storage | Self-destructed Last Messages --------------- GOAL=ESCAPE 00579_ Reached level 2. 00606_ Upgraded: Propulsion Slot (+1) 00606_ Upgraded: Utility Slot (+1) 00606_ Upgraded: Weapon Slot (+1) 00606_ Upgraded: Core Integrity (+400) 00606_ Upgraded: Heat Dissipation (+30) 00606_ Upgraded: Mass Support (+5) 00606_ Upgraded: Inventory Capacity (+3) 00606_ Upgraded: Sensor Range (+2) 00606_ Upgraded: Ranged Accuracy (+5) 00619_ EXIT=FOUND 00627_ K-01 Serf cleans the Terminal. 00679_ C-30 ARC bursts open, deploying its payload. 00679_ G-47 Trooper unfolds itself. 00679_ G-34 Mercenary unfolds itself. LOCATION=UNKNOWN GOAL=ESCAPE 00699_ Reached level 3. 00736_ K-01 Serf collects debris. Map ----- +----------------------------------------------------+ | | | | | | | | | ??????????????????????????????????????????? | | ??????????????????????????????????????????? | | ??????????????????????????????????????????? | | ??????????????????????????????????????????? | | ??????????????????????????????????????????? | | ??????????????????????????????????????????? | | ??????????????????#+??????????????????????? | | ?????????????????? ??????????????????????? | | ?????????????????? ????????????????????? | | ?????????????????? T ????????????????????? | | ?????????????????? ????????????????????? | | ?????????????????? ????????????????????? | | ?????????????????? ????????????????????? | | ?????????????????# ???????????????????? | | ?????????????????# ""????????????????????? | | ?????????????????# ""?????#??????????????? | | ?????????????????+ "?????????????????????? | | ?????????????????# ????????? ???????????? | | ?????????????????# ??????????????????????? | | ????????????####?# g??????????????????????? | | ???????????##"T"##g######?????????????????? | | ???????????# @ #?????????????????? | | ???????????# """ #?????????????????? | | ???????????# """ "Y" ##????????????????? | | ?????#?????# """ Y""" #??????"?????????? | | ????????#??# ##????????????????? | | ???????????#######+######?#???????????????? | | ?????????????? + #?????????????????????? | | ?????????"??????# ###???????????????????? | | ????????????????# + "????????#??#???????? | | ???????#???? ???# #T#???????????????????? | | ????????????? ? + ###?#????"????????????? | | ????????????????# #?????????????????????? | | ????????????????# #?????????????????????? | | ????????????????# #?????????????????????? | | ??????#???????? # #?#???#???????????????? | | ????????????????# ##?###????????????????? | | ??????????#?????# #?????????????????????? | | ????????????????# #?####????????????????? | | ??????????????#?# ^## #????????????????? | | ?????????#??????# # ##???????????????? | | ?????#??????????# + #????????????????? | | ????????????????# ^ # #??????#?????????? | | ????????????????# ^ ##T #????????????????? | | ??????????????#?# #?####????????????????? | | ????????????????# #?????????????????????? | +----------------------------------------------------+ Best States ------------- Heat Dissipation 55 Energy Generation 10 Energy Capacity 250 Matter Stores 300 Matter Capacity 300 Sight Range 16 Robot Scan Range 2 Terrain Scan Range 16 Terrain Scan Density 10 Evasion (%) 40 Recoil Reduction 1 Item Schematics ----------------- None Robot Schematics ------------------ None Fabricated ------------ Nothing Alien Tech Used ----------------- None Achievements -------------- None Challenges ------------ None RPGLIKE | -11 -10 -9 -9 --------- Run | Scr Mat Mat Sto Levels Raised 2 | . . 1 1 XP Earned 6350 | 3000 850 1500 1000 XP Spent 4480 | . . 4480 . Upgrades 22 | . . 22 . Propulsion Slot 1 | . . 1 . Utility Slot 1 | . . 1 . Weapon Slot 1 | . . 1 . Core Integrity 8 | . . 8 . Heat Dissipation 5 | . . 5 . Mass Support 1 | . . 1 . Inventory Capacity 3 | . . 3 . Sensor Range 1 | . . 1 . Ranged Accuracy 1 | . . 1 . Protomatter Created 25 | . 25 . . Integrity Restored 75 | . 75 . . Core 75 | . 75 . . Protomatter Decayed . | . . . . Game ------ Seed SiegeDroneBlaster Manual? 0 Play Time 00:08:16 Cumulative 15.1 hours Start 2021.07.25 @ 19:07:56 End 2021.07.25 @ 19:15:50 Sessions 1 Manual Loads 0 Difficulty Rogue Special Mode Winter2019/RPGLIKE Game No. 9 Rogue 9 Adventurer 0 Explorer 0 Win Type - Total 0 Types 0/0/0/0/0/0/0/0/0 Lore% 11 Gallery% 24 Achievement% 21 Wizard Run 0 Options --------- ASCII 0 Keyboard 0 Movement Mouse Keybinds 0 Fullscreen 2 Font 36/Terminus Map View 76x50 Tactical HUD 1 Map Filters NONE Filters NONE Steam 1 RUN: ca03e366-0fbb-4ed5-8f30-881858a16188